{"text_format":"1","workbook":"xlsx","n_sheets":1,"sheets":["Inventario"],"not_rendered":{"charts":0,"images":6,"macros":1,"external_links":0,"defined_names":0,"comments":0,"pivot_tables":0},"unopened":[],"bounds":{"document_bytes":16777216,"sheet_cells":100000,"rows_first":2000,"rows_last":500,"rows_between":2000,"halvings":0,"cell_chars":16384,"cell_head_chars":4096},"cells_cut":0,"cells_raw":0,"read":"whole","date_system":"1900"}

{"sheet":"Inventario","index":0,"n_rows":38,"n_cols":23,"rows_kept":38,"cut":false,"hidden":false,"merged":[[4,21,4,23],[3,21,3,23],[2,21,2,23],[1,21,1,23],[9,1,9,7],[9,9,9,12],[9,14,9,19],[1,14,1,16],[4,14,4,16],[2,14,3,16]]}
[]
[null,null,null,null,null,null,null,null,null,null,null,null,null,null,"Totalidad de Artículos en Almacén",null,null,null,null,null,null,"Fecha de Última Entrada"]
[null,null,null,null,null,null,null,null,null,null,null,null,null,null,{"$f":"SUM(PRODUCTOS[Existencias])","v":733},null,null,null,null,null,null,{"$f":"MAX(ENTRADAS[Fecha])","v":"2023-06-18"}]
[null,null,null,null,null,null,null,null,null,null,null,null,null,null,null,null,null,null,null,null,null,"Fecha de Última Salida"]
[null,null,null,null,null,null,null,null,null,null,null,null,null,null,{"$f":"TODAY()","v":"2024-09-17"},null,null,null,null,null,null,{"$f":"MAX(SALIDAS[Fecha])","v":"2023-05-18"}]
[]
[]
[]
[]
[null,"INVENTARIO DE ALMACÉN",null,null,null,null,null,null,null,"ENTRADAS DE ALMACÉN",null,null,null,null,"SALIDAS DE ALMACÉN"]
[null,"Código","Artículo","Entradas","Salidas","Existencias","Tipo","Material",null,"Código","Artículo","Fecha","Cantidad",null,"Código","Artículo","Fecha","Cantidad","Obra","Responsable"]
[null,"P01","Varilla 1/2",{"$f":"SUMIF(ENTRADAS[Código],PRODUCTOS[Código],ENTRADAS[Cantidad])","v":150},{"$f":"SUMIF(SALIDAS[Código],PRODUCTOS[Código],SALIDAS[Cantidad])","v":62},{"$f":"PRODUCTOS[Entradas]-PRODUCTOS[Salidas]","v":88},null,null,null,"P03",{"$f":"IFERROR(VLOOKUP(ENTRADAS[Código],PRODUCTOS[],2,FALSE),\"No Existe\")","v":"Varilla 5/8"},"2023-01-01",50,null,"P01",{"$f":"IFERROR(VLOOKUP(SALIDAS[Código],PRODUCTOS[],2,FALSE),\"No Existe\")","v":"Varilla 1/2"},"2021-01-03",10]
[null,"P02","Varilla 3/4",{"$f":"SUMIF(ENTRADAS[Código],PRODUCTOS[Código],ENTRADAS[Cantidad])","v":100},{"$f":"SUMIF(SALIDAS[Código],PRODUCTOS[Código],SALIDAS[Cantidad])","v":2},{"$f":"PRODUCTOS[Entradas]-PRODUCTOS[Salidas]","v":98},null,null,null,"P02",{"$f":"IFERROR(VLOOKUP(ENTRADAS[Código],PRODUCTOS[],2,FALSE),\"No Existe\")","v":"Varilla 3/4"},"2023-01-01",100,null,"P02",{"$f":"IFERROR(VLOOKUP(SALIDAS[Código],PRODUCTOS[],2,FALSE),\"No Existe\")","v":"Varilla 3/4"},"2021-01-03",2]
[null,"P03","Varilla 5/8",{"$f":"SUMIF(ENTRADAS[Código],PRODUCTOS[Código],ENTRADAS[Cantidad])","v":250},{"$f":"SUMIF(SALIDAS[Código],PRODUCTOS[Código],SALIDAS[Cantidad])","v":1},{"$f":"PRODUCTOS[Entradas]-PRODUCTOS[Salidas]","v":249},"Herramienta",null,null,"P01",{"$f":"IFERROR(VLOOKUP(ENTRADAS[Código],PRODUCTOS[],2,FALSE),\"No Existe\")","v":"Varilla 1/2"},"2023-01-01",150,null,"P03",{"$f":"IFERROR(VLOOKUP(SALIDAS[Código],PRODUCTOS[],2,FALSE),\"No Existe\")","v":"Varilla 5/8"},"2021-01-03",1]
[null,"P04","Clavo 3/2",{"$f":"SUMIF(ENTRADAS[Código],PRODUCTOS[Código],ENTRADAS[Cantidad])","v":25},{"$f":"SUMIF(SALIDAS[Código],PRODUCTOS[Código],SALIDAS[Cantidad])","v":0},{"$f":"PRODUCTOS[Entradas]-PRODUCTOS[Salidas]","v":25},null,"Eléctrico",null,"P03",{"$f":"IFERROR(VLOOKUP(ENTRADAS[Código],PRODUCTOS[],2,FALSE),\"No Existe\")","v":"Varilla 5/8"},"2023-01-02",200,null,"P01",{"$f":"IFERROR(VLOOKUP(SALIDAS[Código],PRODUCTOS[],2,FALSE),\"No Existe\")","v":"Varilla 1/2"},"2021-01-04",2]
[null,"P05","Clavo 1/2",{"$f":"SUMIF(ENTRADAS[Código],PRODUCTOS[Código],ENTRADAS[Cantidad])","v":200},{"$f":"SUMIF(SALIDAS[Código],PRODUCTOS[Código],SALIDAS[Cantidad])","v":0},{"$f":"PRODUCTOS[Entradas]-PRODUCTOS[Salidas]","v":200},"Material",null,null,"P04",{"$f":"IFERROR(VLOOKUP(ENTRADAS[Código],PRODUCTOS[],2,FALSE),\"No Existe\")","v":"Clavo 3/2"},"2023-01-02",25,null,"P06",{"$f":"IFERROR(VLOOKUP(SALIDAS[Código],PRODUCTOS[],2,FALSE),\"No Existe\")","v":"TORNILLO"},"2023-05-18",150]
[null,"P06","TORNILLO",{"$f":"SUMIF(ENTRADAS[Código],PRODUCTOS[Código],ENTRADAS[Cantidad])","v":200},{"$f":"SUMIF(SALIDAS[Código],PRODUCTOS[Código],SALIDAS[Cantidad])","v":150},{"$f":"PRODUCTOS[Entradas]-PRODUCTOS[Salidas]","v":50},null,"Agregados",null,"P05",{"$f":"IFERROR(VLOOKUP(ENTRADAS[Código],PRODUCTOS[],2,FALSE),\"No Existe\")","v":"Clavo 1/2"},"2023-01-02",200,null,"P07",{"$f":"IFERROR(VLOOKUP(SALIDAS[Código],PRODUCTOS[],2,FALSE),\"No Existe\")","v":"CABLE"},"2023-05-18",2]
[null,"P07","CABLE",{"$f":"SUMIF(ENTRADAS[Código],PRODUCTOS[Código],ENTRADAS[Cantidad])","v":10},{"$f":"SUMIF(SALIDAS[Código],PRODUCTOS[Código],SALIDAS[Cantidad])","v":2},{"$f":"PRODUCTOS[Entradas]-PRODUCTOS[Salidas]","v":8},null,null,null,"P06",{"$f":"IFERROR(VLOOKUP(ENTRADAS[Código],PRODUCTOS[],2,FALSE),\"No Existe\")","v":"TORNILLO"},"2023-06-18",200,null,"P08",{"$f":"IFERROR(VLOOKUP(SALIDAS[Código],PRODUCTOS[],2,FALSE),\"No Existe\")","v":"PVC"},"2023-05-18",5]
[null,"P08","PVC",{"$f":"SUMIF(ENTRADAS[Código],PRODUCTOS[Código],ENTRADAS[Cantidad])","v":20},{"$f":"SUMIF(SALIDAS[Código],PRODUCTOS[Código],SALIDAS[Cantidad])","v":5},{"$f":"PRODUCTOS[Entradas]-PRODUCTOS[Salidas]","v":15},null,null,null,"P07",{"$f":"IFERROR(VLOOKUP(ENTRADAS[Código],PRODUCTOS[],2,FALSE),\"No Existe\")","v":"CABLE"},"2023-06-18",10,null,"P01",{"$f":"IFERROR(VLOOKUP(SALIDAS[Código],PRODUCTOS[],2,FALSE),\"No Existe\")","v":"Varilla 1/2"},"2023-05-18",50]
[null,"P09","CINTA",{"$f":"SUMIF(ENTRADAS[Código],PRODUCTOS[Código],ENTRADAS[Cantidad])","v":0},{"$f":"SUMIF(SALIDAS[Código],PRODUCTOS[Código],SALIDAS[Cantidad])","v":0},{"$f":"PRODUCTOS[Entradas]-PRODUCTOS[Salidas]","v":0},"Herramienta","Sanitario",null,"P08",{"$f":"IFERROR(VLOOKUP(ENTRADAS[Código],PRODUCTOS[],2,FALSE),\"No Existe\")","v":"PVC"},"2023-06-18",20]
[]
[]
[null,null,null,null,null,null,null,null,null,null,null,null,null,null,null,null,null,null,null,null,null,null,"Herramienta"]
[null,null,null,null,null,null,null,null,null,null,null,null,null,null,null,null,null,null,null,null,null,null,"Material"]
[]
[]
[]
[]
[]
[]
[]
[null,null,null,null,null,null,null,null,null,null,null,null,null,null,null,null,null,null,null,null,null,null,"Hidráulico"]
[null,null,null,null,null,null,null,null,null,null,null,null,null,null,null,null,null,null,null,null,null,null,"Sanitario"]
[null,null,null,null,null,null,null,null,null,null,null,null,null,null,null,null,null,null,null,null,null,null,"Eléctrico"]
[null,null,null,null,null,null,null,null,null,null,null,null,null,null,null,null,null,null,null,null,null,null,"Agregados"]
[null,null,null,null,null,null,null,null,null,null,null,null,null,null,null,null,null,null,null,null,null,null,"Madera"]
[null,null,null,null,null,null,null,null,null,null,null,null,null,null,null,null,null,null,null,null,null,null,"Pintura"]
[null,null,null,null,null,null,null,null,null,null,null,null,null,null,null,null,null,null,null,null,null,null,"Acero"]